bitfinex/quotes_SOLUSD_20241218
["timestamp","ask_amount","ask_price","bid_price","bid_amount"]
[1734534802982,22.59615309,216.07,216.0,22.59615309]
[1734534803185,22.59615309,216.07,215.99,22.59615309]
[1734534803392,22.59615309,216.06,215.98,22.59615309]
[1734534803599,22.59615309,216.05,215.98,22.59615309]
[1734534804019,22.59615309,216.06,215.98,22.59615309]
[1734534805103,22.59615309,216.07,215.99,22.59615309]
[1734534805277,22.59615309,216.07,216.0,22.59615309]
[1734534805472,22.59615309,216.06,215.99,22.59615309]
[1734534806609,22.59615309,216.06,215.98,22.59615309]
[1734534807105,22.59615309,216.04,215.97,22.59615309]
[1734534807493,37.99615309,216.03,215.96,22.59615309]
[1734534807805,22.59615309,215.99,215.93,1.5324]
[1734534808304,22.59615309,215.99,215.92,22.59615309]
[1734534808702,15.4,215.99,215.93,22.59615309]
[1734534808911,15.4,215.99,215.94,22.59615309]
[1734534809415,15.4,215.99,215.95,22.59615309]
[1734534809597,15.4,215.99,215.98,22.59615309]
[1734534809782,15.4,216.05,215.98,22.59615309]
[1734534810107,37.99615309,216.04,215.97,22.59615309]
[1734534810410,15.4,216.03,215.98,22.59615309]
[1734534810910,37.99615309,216.03,215.96,22.59615309]
[1734534811206,15.4,216.03,215.97,22.59615309]
[1734534812002,1.6102,216.09,215.9,9.37406208]
[1734534812003,37.99615309,216.01,215.94,22.59615309]
[1734534812190,37.99615309,216.0,215.93,22.59615309]
[1734534812386,15.4,216.0,215.94,22.59615309]
[1734534812577,15.4,216.0,215.95,22.59615309]
[1734534812784,22.59615309,216.03,215.96,22.59615309]
[1734534813118,15.4,216.08,216.02,22.59615309]
[1734534813774,22.59615309,216.07,216.0,22.59615309]
[1734534814206,15.4,216.08,216.02,22.59615309]
[1734534814607,22.59615309,216.11,216.04,22.59615309]
[1734534815000,37.99615309,216.1,216.03,22.59615309]
[1734534815196,22.59615309,216.11,216.04,22.59615309]
[1734534817080,22.59615309,216.1,216.03,22.59615309]
[1734534817408,22.59615309,216.11,216.04,22.59615309]
[1734534817795,22.59615309,216.1,216.02,22.59615309]
[1734534818106,15.4,216.13,215.99,22.59615309]
[1734534818107,22.59615309,216.07,215.99,22.59615309]
[1734534818303,37.99615309,216.06,215.99,22.59615309]
[1734534818602,15.4,216.06,216.0,22.59615309]
[1734534818805,15.4,216.06,216.01,22.59615309]
[1734534818976,15.4,216.06,215.99,20.0]
[1734534818977,15.4,216.06,216.02,22.59615309]
[1734534819181,15.4,216.06,216.03,22.59615309]
[1734534819376,15.4,216.1,216.05,22.59615309]
[1734534819817,37.99615309,216.1,216.03,22.59615309]
[1734534820193,22.59615309,216.09,216.02,22.59615309]
[1734534820813,22.59615309,216.07,216.0,22.59615309]
[1734534821114,22.59615309,216.06,215.99,42.59615309]
[1734534821481,22.59615309,216.07,215.99,42.59615309]
[1734534821906,37.99615309,216.1,216.02,22.59615309]
[1734534822087,15.4,216.1,216.04,22.59615309]
[1734534822295,15.4,216.15,216.09,22.59615309]
[1734534822500,15.4,216.17,216.11,22.59615309]
[1734534822698,22.59615309,216.18,216.11,22.59615309]
[1734534822899,15.4,216.18,216.12,22.59615309]
[1734534823697,15.4,216.19,216.13,22.59615309]
[1734534824099,22.59615309,216.18,216.11,22.59615309]
[1734534824288,37.99615309,216.18,216.1,22.59615309]
[1734534824489,15.4,216.18,216.11,22.59615309]
[1734534824723,15.4,216.18,216.12,22.59615309]
[1734534824907,15.4,216.18,216.13,22.59615309]
[1734534825112,15.4,216.17,216.11,22.59615309]
[1734534825304,15.4,216.16,216.09,22.59615309]
[1734534825717,15.4,216.16,216.11,22.59615309]
[1734534828118,15.4,216.16,216.12,22.59615309]
[1734534829108,15.4,216.19,216.12,22.59615309]
[1734534829927,22.59615309,216.18,216.1,22.59615309]
[1734534830499,15.4,216.19,216.12,22.59615309]
[1734534831312,15.4,216.25,216.17,22.59615309]
[1734534831634,15.4,216.33,216.25,6.3959]
[1734534831850,7.12074869,216.34,216.32,22.59615309]
[1734534832330,2.84034317,216.36,216.35,20.0]
[1734534832637,15.4,216.41,216.34,22.59615309]
[1734534832811,22.52074869,216.43,216.34,22.59615309]
[1734534833134,22.59615309,216.42,216.34,22.59615309]
[1734534833297,37.99615309,216.42,216.34,22.59615309]
[1734534833492,22.59615309,216.4,216.32,22.59615309]
[1734534833720,22.59615309,216.38,216.3,22.59615309]
[1734534833949,22.59615309,216.36,216.28,22.59615309]
[1734534834339,22.59615309,216.3,216.27,2.75596702]
[1734534834733,22.59615309,216.28,216.2,22.59615309]
[1734534834940,22.59615309,216.26,216.2,22.59615309]
[1734534835331,22.59615309,216.23,216.16,22.59615309]
[1734534835751,22.59615309,216.23,216.15,22.59615309]
[1734534836256,22.59615309,216.22,216.16,2.70933347]
[1734534836435,37.99615309,216.28,216.21,22.59615309]
[1734534836625,22.59615309,216.29,216.22,22.59615309]
[1734534836960,22.59615309,216.3,216.22,22.59615309]
[1734534837454,22.59615309,216.31,216.24,22.59615309]
[1734534837640,37.99615309,216.32,216.25,22.59615309]
[1734534837960,22.59615309,216.32,216.25,22.59615309]
[1734534838548,22.59615309,216.31,216.23,22.59615309]
[1734534839647,22.59615309,216.31,216.24,22.59615309]
[1734534839864,22.59615309,216.31,216.23,22.59615309]
[1734534840029,22.59615309,216.29,216.22,22.59615309]
[1734534840360,22.59615309,216.3,216.22,22.59615309]
[1734534840858,22.59615309,216.29,216.22,22.59615309]
[1734534841153,22.59615309,216.28,216.21,22.59615309]
[1734534841655,22.59615309,216.3,216.22,22.59615309]
[1734534841856,15.4,216.28,216.22,22.59615309]
[1734534842065,15.4,216.28,216.21,22.59615309]
[1734534842066,37.99615309,216.28,216.21,22.59615309]
[1734534842265,15.4,216.26,216.2,22.59615309]
[1734534842469,15.4,216.25,216.19,22.59615309]
[1734534842627,22.59615309,216.23,216.16,22.59615309]
[1734534842827,22.59615309,216.21,216.14,22.59615309]
[1734534843038,37.99615309,216.19,216.11,29.74368267]
[1734534843364,22.59615309,216.12,216.11,7.14752958]
[1734534843569,22.59615309,216.12,216.1,14.29505917]
[1734534843785,15.4,216.11,216.07,22.59615309]
[1734534843929,22.59615309,216.18,216.1,22.59615309]
[1734534844267,15.4,216.19,216.13,22.59615309]
[1734534844442,15.4,216.18,216.13,22.59615309]
[1734534844647,15.4,216.18,216.16,22.59615309]
[1734534844888,15.4,216.2,216.15,22.59615309]
[1734534845045,37.99615309,216.21,216.14,22.59615309]
[1734534845346,15.4,216.2,216.15,22.59615309]
[1734534846356,37.99615309,216.21,216.14,22.59615309]
[1734534846861,37.99615309,216.21,216.13,22.59615309]
[1734534846862,15.4,216.2,216.13,22.59615309]
[1734534847070,22.59615309,216.17,216.1,22.59615309]
[1734534847364,22.59615309,216.18,216.11,22.59615309]
[1734534847529,22.59615309,216.19,216.12,22.59615309]
[1734534847862,15.4,216.29,216.15,20.0]
[1734534848158,15.4,216.3,216.16,23.902374]
[1734534848330,15.4,216.3,216.19,20.0]
[1734534848538,15.4,216.31,216.23,22.59615309]
[1734534848747,37.99615309,216.3,216.23,22.59615309]
[1734534849069,22.59615309,216.27,216.2,22.59615309]
[1734534849479,37.99615309,216.28,216.2,22.59615309]
[1734534850074,37.99615309,216.28,216.21,22.59615309]
[1734534850443,22.59615309,216.29,216.22,22.59615309]
[1734534850678,37.99615309,216.31,216.23,22.59615309]
[1734534851174,22.59615309,216.34,216.26,22.59615309]
[1734534851381,22.59615309,216.35,216.28,22.59615309]
[1734534851593,15.4,216.36,216.29,22.59615309]
[1734534851755,22.59615309,216.32,216.24,22.59615309]
[1734534851949,1.5237,216.38,216.2,6.2575]
[1734534851950,15.4,216.35,216.2,6.2575]
[1734534852946,22.59615309,216.29,216.22,22.59615309]
[1734534853143,22.59615309,216.31,216.23,22.59615309]
[1734534853370,37.99615309,216.32,216.25,22.59615309]
[1734534853575,22.59615309,216.33,216.26,22.59615309]
[1734534853771,37.99615309,216.34,216.27,22.59615309]
[1734534854555,37.99615309,216.34,216.21,11.5628]
[1734534854556,22.59615309,216.36,216.28,22.59615309]
[1734534855457,22.59615309,216.34,216.27,22.59615309]
[1734534855973,22.59615309,216.32,216.25,22.59615309]
[1734534856186,22.59615309,216.29,216.22,22.59615309]
[1734534856493,22.59615309,216.29,216.21,46.37303709]
[1734534856801,22.59615309,216.29,216.22,22.59615309]
[1734534857291,22.59615309,216.24,216.17,22.59615309]
[1734534857863,22.59615309,216.24,216.16,22.59615309]
[1734534858065,22.59615309,216.21,216.14,29.09415309]
[1734534858368,22.59615309,216.18,216.11,22.59615309]
[1734534858876,22.59615309,216.2,216.13,22.59615309]
[1734534859076,37.99615309,216.21,216.13,22.59615309]
[1734534859286,22.59615309,216.2,216.13,22.59615309]
[1734534859592,37.99615309,216.21,216.13,22.59615309]
[1734534860192,15.4,216.21,216.15,22.59615309]
[1734534860398,6.0161,216.3,216.2,22.59615309]
[1734534860697,15.4,216.31,216.24,22.59615309]
[1734534860996,24.19585309,216.32,216.24,22.59615309]
[1734534861358,22.59615309,216.33,216.26,22.59615309]
[1734534861557,22.59615309,216.33,216.19,0.69358233]
[1734534861558,22.59615309,216.36,216.28,22.59615309]
[1734534861791,37.99615309,216.36,216.28,22.59615309]
[1734534862355,22.59615309,216.39,216.32,22.59615309]
[1734534862561,22.59615309,216.4,216.32,22.59615309]
[1734534862867,15.4,216.4,216.33,22.59615309]
[1734534863191,37.99615309,216.4,216.32,22.59615309]
[1734534863555,37.99615309,216.4,216.29,20.0]
[1734534863556,22.59615309,216.43,216.36,22.59615309]
[1734534863762,37.99615309,216.42,216.34,22.59615309]
[1734534864576,22.59615309,216.4,216.33,22.59615309]
[1734534864782,22.59615309,216.38,216.31,22.59615309]
[1734534864984,22.59615309,216.38,216.29,20.0]
[1734534864985,22.59615309,216.41,216.34,22.59615309]
[1734534865464,22.59615309,216.42,216.34,22.59615309]
[1734534865688,22.59615309,216.42,216.35,22.59615309]
[1734534865893,22.59615309,216.43,216.36,22.59615309]
[1734534866196,0.5661668,216.44,216.36,22.59615309]
[1734534866197,23.16231989,216.44,216.36,22.59615309]
[1734534866496,22.59615309,216.43,216.36,22.59615309]
[1734534866795,22.59615309,216.42,216.34,22.59615309]
[1734534867091,22.59615309,216.42,216.35,22.59615309]
[1734534867265,22.59615309,216.41,216.33,42.59615309]
[1734534867466,22.59615309,216.4,216.32,22.59615309]
[1734534867670,22.59615309,216.41,216.33,22.59615309]
[1734534867899,37.99615309,216.42,216.35,22.59615309]
[1734534868601,22.59615309,216.43,216.36,22.59615309]
[1734534868976,22.59615309,216.43,216.35,22.59615309]
[1734534870094,23.16231989,216.44,216.36,22.59615309]
[1734534870399,0.5661668,216.44,216.37,22.59615309]
[1734534871406,0.5661668,216.44,216.39,22.59615309]
[1734534871711,0.5661668,216.44,216.34,11.5558]
[1734534871712,0.5661668,216.44,216.4,22.59615309]
[1734534872006,0.5661668,216.44,216.39,22.59615309]
[1734534872591,22.59615309,216.43,216.36,22.59615309]
[1734534872792,0.5661668,216.44,216.38,22.59615309]
[1734534873105,0.5661668,216.44,216.39,22.59615309]
[1734534873312,0.5661668,216.44,216.41,22.59615309]
[1734534874395,22.59615309,216.49,216.41,22.59615309]
[1734534874712,22.59615309,216.47,216.4,42.59615309]
[1734534876382,22.59615309,216.48,216.41,22.59615309]
[1734534878311,22.59615309,216.47,216.4,42.59615309]
[1734534878990,22.59615309,216.48,216.4,42.59615309]
[1734534880017,22.59615309,216.48,216.41,22.59615309]
[1734534880602,22.59615309,216.49,216.42,22.59615309]
[1734534882018,22.59615309,216.48,216.42,22.59615309]
[1734534882200,22.59615309,216.48,216.41,22.59615309]
[1734534882520,22.59615309,216.49,216.42,22.59615309]
[1734534883611,22.59615309,216.5,216.43,22.59615309]
[1734534883913,22.59615309,216.49,216.42,42.59615309]
[1734534884499,15.4,216.55,216.47,22.59615309]
[1734534884708,22.59615309,216.55,216.48,22.59615309]
[1734534885021,22.59615309,216.54,216.46,42.59615309]
[1734534885227,22.59615309,216.52,216.46,20.0]
[1734534885535,22.59615309,216.5,216.43,22.59615309]
[1734534885724,22.59615309,216.51,216.43,22.59615309]
[1734534885898,22.59615309,216.52,216.45,22.59615309]
[1734534886603,37.99615309,216.54,216.46,22.59615309]
[1734534886939,22.59615309,216.53,216.46,22.59615309]
[1734534887228,22.09615309,216.53,216.46,22.59615309]
[1734534887438,37.99615309,216.54,216.47,22.59615309]
[1734534887602,22.59615309,216.56,216.49,22.59615309]
[1734534887986,22.59615309,216.55,216.48,22.59615309]
[1734534888805,22.59615309,216.56,216.49,22.59615309]
[1734534889019,22.59615309,216.56,216.48,22.59615309]
[1734534890086,22.59615309,216.6,216.52,22.59615309]
[1734534890379,22.59615309,216.57,216.49,22.59615309]
[1734534891168,22.59615309,216.55,216.48,22.59615309]
[1734534891345,22.59615309,216.57,216.5,22.59615309]
[1734534891545,22.59615309,216.58,216.5,22.59615309]
[1734534891737,22.59615309,216.63,216.55,22.59615309]
[1734534891942,37.99615309,216.65,216.59,20.0]
[1734534892141,23.16231989,216.66,216.59,42.59615309]
[1734534892342,0.5661668,216.66,216.6,22.59615309]
[1734534892757,0.5661668,216.66,216.61,22.59615309]
[1734534892960,0.5661668,216.66,216.62,22.59615309]
[1734534893161,0.5661668,216.66,216.64,22.59615309]
[1734534893363,0.5661668,216.66,216.65,22.59615309]
[1734534893873,0.5661668,216.66,216.65,47.06515481]
[1734534894076,6.68e-05,216.66,216.65,58.48054481]
[1734534894671,22.59615309,216.79,216.68,20.0]
[1734534894846,22.59615309,216.79,216.73,22.59615309]
[1734534895156,37.0425,216.83,216.68,31.5375]
[1734534895157,22.59615309,216.76,216.69,22.59615309]
[1734534895359,22.59615309,216.7,216.63,22.59615309]
[1734534895675,22.59615309,216.71,216.64,42.59615309]
[1734534895877,15.4,216.75,216.67,22.59615309]
[1734534896079,15.4,216.75,216.65,20.0]
[1734534896296,15.4,216.81,216.65,20.0]
[1734534896780,20.0,216.83,216.69,20.0]
[1734534896991,22.59615309,216.82,216.75,22.59615309]
[1734534897161,22.59615309,216.82,216.69,31.5369]
[1734534897162,22.59615309,216.8,216.74,22.59615309]
[1734534897889,22.59615309,216.8,216.73,22.59615309]
[1734534898674,20.0,216.83,216.73,22.59615309]
[1734534898998,22.59615309,216.79,216.72,22.59615309]
[1734534899176,22.59615309,216.81,216.74,22.59615309]
[1734534899558,42.59615309,216.83,216.76,22.59615309]
[1734534900169,22.59615309,216.82,216.74,22.59615309]
[1734534900363,22.59615309,216.8,216.73,22.59615309]
[1734534900765,22.59615309,216.76,216.69,22.59615309]
[1734534900957,22.59615309,216.74,216.67,22.59615309]
[1734534901165,22.59615309,216.72,216.61,13.26742958]
[1734534901385,22.59615309,216.72,216.65,22.59615309]
[1734534901773,22.59615309,216.72,216.64,22.59615309]
[1734534901980,22.59615309,216.71,216.64,22.59615309]
[1734534902276,22.59615309,216.73,216.66,22.59615309]
[1734534902510,22.59615309,216.69,216.61,22.59615309]
[1734534902808,15.4,216.7,216.53,7.14752958]
[1734534902809,22.59615309,216.62,216.53,7.14752958]
[1734534902966,22.59615309,216.6,216.54,0.84444972]
[1734534903164,17.0576,216.66,216.54,0.84444972]
[1734534903397,22.59615309,216.62,216.54,23.44060281]
[1734534903890,22.59615309,216.61,216.54,23.44060281]
[1734534904401,22.59615309,216.6,216.54,0.84444972]
[1734534904604,17.0576,216.66,216.54,0.84444972]
[1734534904904,1.6576,216.66,216.59,22.59615309]
[1734534905068,22.59615309,216.68,216.6,22.59615309]
[1734534905277,22.59615309,216.66,216.59,22.59615309]
[1734534905585,22.59615309,216.69,216.61,22.59615309]
[1734534905802,22.59615309,216.69,216.62,22.59615309]
[1734534905972,22.59615309,216.69,216.61,22.59615309]
[1734534906570,22.59615309,216.7,216.63,22.59615309]
[1734534907182,22.59615309,216.71,216.64,22.59615309]
[1734534907387,1.5662,216.73,216.64,22.59615309]
[1734534907388,22.59615309,216.72,216.64,22.59615309]
[1734534907596,22.59615309,216.69,216.62,22.59615309]
[1734534907977,22.59615309,216.7,216.62,22.59615309]
[1734534908176,22.59615309,216.7,216.56,11.5438]
[1734534908177,22.59615309,216.71,216.64,22.59615309]
[1734534908378,22.59615309,216.72,216.64,22.59615309]
[1734534908803,22.59615309,216.75,216.67,22.59615309]
[1734534909518,22.59615309,216.75,216.68,22.59615309]
[1734534909902,22.59615309,216.75,216.67,22.59615309]
[1734534910111,22.59615309,216.7,216.62,22.59615309]
[1734534910318,22.59615309,216.69,216.61,22.59615309]
[1734534910699,22.59615309,216.68,216.61,22.59615309]
[1734534910933,22.59615309,216.67,216.6,22.59615309]
[1734534911333,22.59615309,216.66,216.58,22.59615309]
[1734534911643,22.59615309,216.66,216.59,22.59615309]
[1734534911810,22.59615309,216.67,216.59,22.59615309]
[1734534912507,22.59615309,216.68,216.61,22.59615309]
[1734534913317,22.59615309,216.7,216.62,22.59615309]
[1734534913500,22.59615309,216.75,216.67,22.59615309]
[1734534913700,22.59615309,216.76,216.69,22.59615309]
[1734534914229,22.59615309,216.75,216.68,22.59615309]
[1734534915293,22.59615309,216.79,216.73,22.59615309]
[1734534915813,22.59615309,216.8,216.72,22.59615309]
[1734534916009,22.59615309,216.78,216.7,22.59615309]
[1734534916217,22.59615309,216.79,216.71,22.59615309]
[1734534916415,22.59615309,216.82,216.74,22.59615309]
[1734534917212,22.59615309,216.82,216.75,22.59615309]
[1734534917410,22.59615309,216.83,216.76,22.59615309]
[1734534917634,22.59615309,216.82,216.75,22.59615309]
[1734534918052,20.0,216.84,216.77,22.59615309]
[1734534918255,19.53807423,216.84,216.78,22.59615309]
[1734534919238,42.13422732,216.84,216.77,22.59615309]
[1734534919538,22.59615309,216.83,216.76,22.59615309]
[1734534919897,22.59615309,216.82,216.75,22.59615309]
[1734534920102,42.13422732,216.84,216.76,22.59615309]
[1734534920302,19.53807423,216.84,216.8,22.59615309]
[1734534920731,19.53807423,216.84,216.81,22.59615309]
[1734534920929,19.53807423,216.84,216.8,22.59615309]
[1734534921117,19.53807423,216.84,216.79,22.59615309]
[1734534921519,19.53807423,216.84,216.8,22.59615309]
[1734534921922,19.53807423,216.84,216.81,22.59615309]
[1734534922107,19.53807423,216.84,216.82,22.59615309]
[1734534922439,19.53807423,216.84,216.83,22.59615309]
[1734534923050,19.53807423,216.84,216.78,0.69168287]
[1734534923227,19.53807423,216.84,216.82,22.59615309]
[1734534923619,19.53807423,216.84,216.8,20.0]
[1734534923620,19.53807423,216.84,216.81,22.59615309]
[1734534923820,19.53807423,216.84,216.82,22.59615309]
[1734534924024,19.53807423,216.84,216.81,22.59615309]
[1734534924556,19.53807423,216.84,216.82,22.59615309]
[1734534925957,19.53807423,216.84,216.83,22.59615309]
[1734534926719,19.53807423,216.84,216.83,28.68855309]
[1734534926961,0.5661668,216.87,216.83,28.68855309]
[1734534927251,0.5661668,216.87,216.86,22.59615309]
[1734534929441,0.5661668,216.87,216.82,22.59615309]
[1734534929845,0.5661668,216.87,216.84,22.59615309]
[1734534930417,0.5661668,216.87,216.82,22.59615309]
[1734534930617,0.5661668,216.87,216.83,22.59615309]
[1734534930860,0.5661668,216.87,216.79,31.5317]
[1734534930861,0.5661668,216.87,216.84,22.59615309]
[1734534931324,0.5661668,216.87,216.85,22.59615309]
[1734534931528,0.5661668,216.87,216.84,22.59615309]
[1734534932044,0.5661668,216.87,216.85,22.59615309]
[1734534932350,0.5661668,216.87,216.82,22.59615309]
[1734534932528,0.5661668,216.87,216.81,22.59615309]
[1734534932851,0.5661668,216.87,216.8,22.59615309]
[1734534933051,22.59615309,216.86,216.79,22.59615309]
[1734534933430,22.59615309,216.85,216.77,22.59615309]
[1734534933624,22.59615309,216.84,216.77,22.59615309]
[1734534933933,22.59615309,216.86,216.78,22.59615309]
[1734534934541,22.59615309,216.86,216.79,22.59615309]
[1734534934941,23.16231989,216.87,216.8,22.59615309]
[1734534935748,0.5661668,216.87,216.8,22.59615309]
[1734534935957,0.5661668,216.87,216.81,22.59615309]
[1734534936131,0.5661668,216.87,216.82,22.59615309]
[1734534937139,22.59615309,216.84,216.77,22.59615309]
[1734534937338,22.59615309,216.83,216.76,22.59615309]
[1734534937664,23.16231989,216.87,216.8,22.59615309]
[1734534938563,0.5661668,216.87,216.81,22.59615309]
[1734534938763,0.5661668,216.87,216.8,22.59615309]
[1734534938941,22.59615309,216.86,216.78,22.59615309]
[1734534939143,23.16231989,216.87,216.8,22.59615309]
[1734534939657,22.59615309,216.86,216.78,42.59615309]
[1734534939858,22.59615309,216.86,216.78,22.59615309]
[1734534940355,22.59615309,216.84,216.77,22.59615309]
[1734534940658,0.5661668,216.87,216.74,22.59615309]
[1734534940659,22.59615309,216.82,216.74,22.59615309]
[1734534941252,22.59615309,216.79,216.72,22.59615309]
[1734534941452,22.59615309,216.76,216.69,22.59615309]
[1734534941652,22.59615309,216.76,216.68,22.59615309]
[1734534941851,22.59615309,216.74,216.67,22.59615309]
[1734534942158,22.59615309,216.75,216.68,22.59615309]
[1734534942584,22.59615309,216.74,216.66,22.59615309]
[1734534942766,22.59615309,216.71,216.64,22.59615309]
[1734534943060,22.59615309,216.71,216.59,28.85315309]
[1734534943061,22.59615309,216.67,216.59,22.59615309]
[1734534943232,22.59615309,216.66,216.59,22.59615309]
[1734534943759,22.59615309,216.67,216.59,22.59615309]
[1734534944237,22.59615309,216.67,216.6,22.59615309]
[1734534944639,22.59615309,216.66,216.59,22.59615309]
[1734534944851,22.59615309,216.65,216.57,22.59615309]
[1734534945067,22.59615309,216.62,216.54,22.59615309]
[1734534945258,22.59615309,216.61,216.54,22.59615309]
[1734534945574,22.59615309,216.57,216.49,29.74368267]
[1734534945781,22.59615309,216.56,216.49,22.59615309]
[1734534946083,22.59615309,216.55,216.47,22.59615309]
[1734534946461,22.59615309,216.57,216.5,22.59615309]
[1734534947280,15.4,216.66,216.54,22.59615309]
[1734534947478,22.59615309,216.64,216.56,22.59615309]
[1734534947676,22.59615309,216.65,216.58,22.59615309]
[1734534947886,22.59615309,216.64,216.53,20.0]
[1734534948075,22.59615309,216.63,216.56,22.59615309]
[1734534948270,22.59615309,216.67,216.59,22.59615309]
[1734534948474,24.17685309,216.68,216.6,22.59615309]
[1734534949062,22.59615309,216.68,216.61,22.59615309]
[1734534949262,22.59615309,216.7,216.62,22.59615309]
[1734534949960,22.59615309,216.69,216.61,22.59615309]
[1734534951098,1.5371,216.74,216.58,20.0]
[1734534951287,22.59615309,216.65,216.57,22.59615309]
[1734534951591,22.59615309,216.63,216.55,22.59615309]
[1734534951795,22.59615309,216.63,216.56,22.59615309]
[1734534952771,22.59615309,216.65,216.58,22.59615309]
[1734534953188,22.59615309,216.66,216.58,22.59615309]
[1734534953693,22.59615309,216.61,216.54,22.59615309]
[1734534953992,22.59615309,216.7,216.51,22.59615309]
[1734534953993,22.59615309,216.59,216.51,22.59615309]
[1734534954193,22.59615309,216.62,216.54,22.59615309]
[1734534954392,24.10585309,216.63,216.55,22.59615309]
[1734534954601,1.5097,216.63,216.54,22.59615309]
[1734534954790,22.59615309,216.61,216.54,22.59615309]
[1734534955107,22.59615309,216.65,216.57,22.59615309]
[1734534955403,22.59615309,216.64,216.57,22.59615309]
[1734534956080,22.59615309,216.65,216.58,22.59615309]
[1734534956409,22.59615309,216.68,216.6,22.59615309]
[1734534956698,22.59615309,216.69,216.62,22.59615309]
[1734534956898,22.59615309,216.7,216.63,22.59615309]
[1734534957287,22.59615309,216.69,216.62,22.59615309]
[1734534958114,22.59615309,216.7,216.63,22.59615309]
[1734534958484,29.00145309,216.71,216.63,22.59615309]
[1734534958685,22.59615309,216.72,216.65,22.59615309]
[1734534959093,22.59615309,216.75,216.68,22.59615309]
[1734534959611,22.59615309,216.75,216.62,0.69218538]
[1734534959612,22.59615309,216.75,216.67,22.59615309]
[1734534959906,22.59615309,216.74,216.66,22.59615309]
[1734534960216,15.4,216.73,216.6,29.02555309]
[1734534960418,22.59615309,216.67,216.6,22.59615309]
[1734534960575,22.59615309,216.67,216.61,22.59615309]
[1734534960777,22.59615309,216.69,216.61,22.59615309]
[1734534960975,22.59615309,216.73,216.59,0.81788172]
[1734534961204,22.59615309,216.77,216.7,22.59615309]
[1734534961415,24.26165309,216.78,216.71,22.59615309]
[1734534961627,22.59615309,216.81,216.73,22.59615309]
[1734534961911,22.59615309,216.8,216.72,22.59615309]
[1734534962123,22.59615309,216.79,216.72,22.59615309]
[1734534962288,29.03395309,216.82,216.74,22.59615309]
[1734534962487,24.17505309,216.83,216.75,22.59615309]
[1734534963319,22.59615309,216.85,216.77,22.59615309]
[1734534963510,22.59615309,216.85,216.78,22.59615309]
[1734534964412,22.59615309,216.86,216.78,22.59615309]
[1734534964616,22.59615309,216.82,216.75,22.59615309]
[1734534964916,22.59615309,216.79,216.72,22.59615309]
[1734534965159,22.59615309,216.76,216.69,22.59615309]
[1734534965320,6.068,216.8,216.65,6.4951]
[1734534965612,1.5436,216.78,216.65,6.4951]
[1734534966292,22.59615309,216.75,216.68,22.59615309]
[1734534966494,15.4,216.78,216.71,22.59615309]
[1734534967385,22.59615309,216.81,216.73,22.59615309]
[1734534968312,22.59615309,216.83,216.76,22.59615309]
[1734534968489,22.59615309,216.84,216.76,22.59615309]
[1734534968690,22.59615309,216.83,216.76,22.59615309]
[1734534969530,22.59615309,216.83,216.71,0.69190601]
[1734534969531,22.59615309,216.85,216.77,22.59615309]
[1734534969720,22.59615309,216.84,216.77,22.59615309]
[1734534969921,22.59615309,216.82,216.74,22.59615309]
[1734534970229,22.59615309,216.81,216.74,22.59615309]
[1734534970438,22.59615309,216.83,216.75,22.59615309]
[1734534970634,22.59615309,216.8,216.73,22.59615309]
[1734534970945,22.59615309,216.82,216.75,22.59615309]
[1734534971239,15.4,216.84,216.77,22.59615309]
[1734534971536,22.59615309,216.85,216.77,22.59615309]
[1734534971708,22.59615309,216.84,216.77,22.59615309]
[1734534971910,22.59615309,216.83,216.76,22.59615309]
[1734534972114,22.59615309,216.8,216.73,22.59615309]
[1734534972332,22.59615309,216.79,216.72,22.59615309]
[1734534972651,22.59615309,216.79,216.71,22.59615309]
[1734534972836,15.4,216.83,216.72,22.59615309]
[1734534972837,22.59615309,216.8,216.72,22.59615309]
[1734534973045,2.1097668,216.87,216.75,22.59615309]
[1734534973046,22.59615309,216.82,216.75,22.59615309]
[1734534973400,22.59615309,216.84,216.77,22.59615309]
[1734534973828,22.59615309,216.84,216.7,23.28806064]
[1734534973829,22.59615309,216.85,216.78,22.59615309]
[1734534974200,22.59615309,216.84,216.77,22.59615309]
[1734534974435,22.59615309,216.84,216.76,22.59615309]
[1734534974607,22.59615309,216.84,216.77,22.59615309]
[1734534975017,23.16231989,216.87,216.8,22.59615309]
[1734534975212,0.5661668,216.87,216.8,22.59615309]
[1734534975414,0.5661668,216.87,216.81,22.59615309]
[1734534975738,0.5661668,216.87,216.8,22.59615309]
[1734534975941,23.16231989,216.87,216.79,42.59615309]
[1734534976102,23.16231989,216.87,216.8,22.59615309]
[1734534976297,22.59615309,216.86,216.79,22.59615309]
[1734534976508,22.59615309,216.83,216.76,28.67295309]
[1734534976804,22.59615309,216.84,216.76,28.67295309]
[1734534977025,22.59615309,216.83,216.76,28.67295309]
[1734534977436,22.59615309,216.84,216.77,22.59615309]
[1734534977649,22.59615309,216.84,216.76,28.67295309]
[1734534977853,22.59615309,216.82,216.74,22.59615309]
[1734534978149,22.59615309,216.81,216.74,22.59615309]